[Event "Titled Tuesday Blitz February 14 Early 2023"]
[White "Paravyan, David"]
[Black "Tanenbaum, Zachary"]
[WhiteFideId "4194985"]
[BlackFideId "2060850"]
[WhiteElo "2601"]
[BlackElo "2261"]
[Result "1-0"]
[Round "05"]
[TimeControl "180+2"]
[Date "2023.02.15"]
[WhiteClock "0:00:27"]
[BlackClock "0:00:01"]

1. e4 {[%clk 0:03:00]}  e5 {[%clk 0:03:00]} 2. Nf3 {[%clk 0:02:59]}  Nc6 {[%clk 0:03:00]} 3. Bb5 {[%clk 0:03:00]}  a6 {[%clk 0:02:59]} 4. Ba4 {[%clk 0:03:00]}  d6 {[%clk 0:03:00]} 5. O-O {[%clk 0:02:59]}  Nf6 {[%clk 0:03:00]} 6. Re1 {[%clk 0:02:58]}  Be7 {[%clk 0:03:01]} 7. c3 {[%clk 0:02:58]}  O-O {[%clk 0:03:01]} 8. d4 {[%clk 0:02:56]}  b5 {[%clk 0:03:02]} 9. Bc2 {[%clk 0:02:55]}  exd4 {[%clk 0:02:57]} 10. cxd4 {[%clk 0:02:56]}  Nb4 {[%clk 0:02:58]} 11. Bb3 {[%clk 0:02:57]}  c5 {[%clk 0:02:58]} 12. a3 {[%clk 0:02:51]}  Nc6 {[%clk 0:02:57]} 13. d5 {[%clk 0:02:51]}  Ne5 {[%clk 0:02:57]} 14. Nxe5 {[%clk 0:02:51]}  dxe5 {[%clk 0:02:57]} 15. Nc3 {[%clk 0:02:49]}  Bd6 {[%clk 0:02:51]} 16. Bg5 {[%clk 0:02:44]}  h6 {[%clk 0:02:51]} 17. Bh4 {[%clk 0:02:44]}  Bd7 {[%clk 0:02:49]} 18. h3 {[%clk 0:02:40]}  Rc8 {[%clk 0:02:46]} 19. Rc1 {[%clk 0:02:37]}  c4 {[%clk 0:02:43]} 20. Bc2 {[%clk 0:02:37]}  Qe7 {[%clk 0:02:38]} 21. Qf3 {[%clk 0:02:35]}  a5 {[%clk 0:02:22]} 22. Nd1 {[%clk 0:02:35]}  b4 {[%clk 0:02:14]} 23. axb4 {[%clk 0:02:36]}  axb4 {[%clk 0:02:15]} 24. Ne3 {[%clk 0:02:37]}  b3 {[%clk 0:01:49]} 25. Bb1 {[%clk 0:02:36]}  Bb4 {[%clk 0:01:49]} 26. Rf1 {[%clk 0:02:33]}  c3 {[%clk 0:01:44]} 27. bxc3 {[%clk 0:02:34]}  Ba3 {[%clk 0:01:41]} 28. Rcd1 {[%clk 0:02:28]}  Rxc3 {[%clk 0:01:42]} 29. Nf5 {[%clk 0:02:25]}  Bxf5 {[%clk 0:01:40]} 30. Qxc3 {[%clk 0:02:24]}  Bd7 {[%clk 0:01:16]} 31. Qxb3 {[%clk 0:02:19]}  Bc5 {[%clk 0:01:03]} 32. d6 {[%clk 0:02:15]}  Qe6 {[%clk 0:00:56]} 33. Qxe6 {[%clk 0:02:10]}  Bxe6 {[%clk 0:00:56]} 34. Bxf6 {[%clk 0:02:10]}  gxf6 {[%clk 0:00:56]} 35. d7 {[%clk 0:02:10]}  Rd8 {[%clk 0:00:56]} 36. Bc2 {[%clk 0:02:09]}  Bd4 {[%clk 0:00:44]} 37. Ba4 {[%clk 0:02:07]}  Bxd7 {[%clk 0:00:42]} 38. Bxd7 {[%clk 0:02:07]}  Rxd7 {[%clk 0:00:43]} 39. Kh1 {[%clk 0:02:01]}  Ra7 {[%clk 0:00:43]} 40. Rd3 {[%clk 0:01:57]}  Ra2 {[%clk 0:00:42]} 41. Rf3 {[%clk 0:01:58]}  Kg7 {[%clk 0:00:41]} 42. g3 {[%clk 0:01:58]}  Re2 {[%clk 0:00:41]} 43. Kg2 {[%clk 0:01:15]}  Rxe4 {[%clk 0:00:42]} 44. Rc1 {[%clk 0:01:15]}  Re2 {[%clk 0:00:40]} 45. Kf1 {[%clk 0:01:15]}  Rb2 {[%clk 0:00:37]} 46. Rc6 {[%clk 0:01:15]}  e4 {[%clk 0:00:37]} 47. Rf4 {[%clk 0:01:16]}  Rb1+ {[%clk 0:00:33]} 48. Kg2 {[%clk 0:01:15]}  Re1 {[%clk 0:00:32]} 49. Rc4 {[%clk 0:01:14]}  Be5 {[%clk 0:00:24]} 50. Rfxe4 {[%clk 0:01:11]}  Rd1 {[%clk 0:00:23]} 51. Re2 {[%clk 0:01:08]}  Rd7 {[%clk 0:00:20]} 52. f4 {[%clk 0:01:06]}  Ba1 {[%clk 0:00:13]} 53. Ra2 {[%clk 0:01:06]}  Rd1 {[%clk 0:00:12]} 54. Rc7 {[%clk 0:01:05]}  f5 {[%clk 0:00:11]} 55. Raa7 {[%clk 0:00:51]}  Rd2+ {[%clk 0:00:09]} 56. Kf1 {[%clk 0:00:50]}  Bd4 {[%clk 0:00:08]} 57. Rxf7+ {[%clk 0:00:50]}  Kg6 {[%clk 0:00:08]} 58. Rad7 {[%clk 0:00:50]}  Rd3 {[%clk 0:00:04]} 59. Rfe7 {[%clk 0:00:46]}  Kf6 {[%clk 0:00:03]} 60. Re2 {[%clk 0:00:40]}  Rd1+ {[%clk 0:00:02]} 61. Kg2 {[%clk 0:00:39]}  Rd3 {[%clk 0:00:01]} 62. g4 {[%clk 0:00:33]}  fxg4 {[%clk 0:00:01]} 63. hxg4 {[%clk 0:00:34]}  Rd1 {[%clk 0:00:01]} 64. Rd6+ {[%clk 0:00:26]}  Kg7 {[%clk 0:00:01]} 65. Re7+ {[%clk 0:00:25]}  Kf8 {[%clk 0:00:02]} 66. Rb7 {[%clk 0:00:25]}  Rg1+ {[%clk 0:00:03]} 67. Kf3 {[%clk 0:00:25]}  Ke8 {[%clk 0:00:03]} 68. Rxd4 {[%clk 0:00:25]}  Rf1+ {[%clk 0:00:03]} 69. Ke4 {[%clk 0:00:25]}  Re1+ {[%clk 0:00:03]} 70. Kf5 {[%clk 0:00:26]}  Re2 {[%clk 0:00:02]} 71. Re4+ {[%clk 0:00:26]}  Rxe4 {[%clk 0:00:01]} 72. Kxe4 {[%clk 0:00:27]} 1-0


[Site "https://www.chess.com"]

[Event "Titled Tuesday Blitz February 14 Early 2023"]
[White "Tsydypov, Zhamsaran"]
[Black "Paichadze, Luka"]
[WhiteFideId "4108566"]
[BlackFideId "13602934"]
[WhiteElo "2518"]
[BlackElo "2515"]
[Result "1-0"]
[Round "05"]
[TimeControl "180+2"]
[Date "2023.02.15"]
[WhiteClock "0:02:05"]
[BlackClock "0:00:31"]

1. e4 {[%clk 0:02:59]}  c6 {[%clk 0:03:00]} 2. d4 {[%clk 0:02:57]}  d5 {[%clk 0:03:00]} 3. e5 {[%clk 0:02:57]}  c5 {[%clk 0:03:00]} 4. dxc5 {[%clk 0:02:54]}  e6 {[%clk 0:02:59]} 5. a3 {[%clk 0:02:55]}  Bxc5 {[%clk 0:02:59]} 6. b4 {[%clk 0:02:55]}  Be7 {[%clk 0:02:55]} 7. Bb2 {[%clk 0:02:53]}  a5 {[%clk 0:02:51]} 8. Qg4 {[%clk 0:02:52]}  g6 {[%clk 0:02:50]} 9. b5 {[%clk 0:02:52]}  h5 {[%clk 0:02:50]} 10. Qf4 {[%clk 0:02:51]}  Nh6 {[%clk 0:02:48]} 11. Nf3 {[%clk 0:02:52]}  Nd7 {[%clk 0:02:46]} 12. c4 {[%clk 0:02:50]}  Nb6 {[%clk 0:02:41]} 13. Nc3 {[%clk 0:02:44]}  g5 {[%clk 0:02:19]} 14. Qd2 {[%clk 0:02:44]}  Nxc4 {[%clk 0:02:14]} 15. Bxc4 {[%clk 0:02:43]}  dxc4 {[%clk 0:02:15]} 16. Ne4 {[%clk 0:02:42]}  Qxd2+ {[%clk 0:02:12]} 17. Nfxd2 {[%clk 0:02:42]}  Bd7 {[%clk 0:02:11]} 18. Nxc4 {[%clk 0:02:42]}  Nf5 {[%clk 0:02:03]} 19. Nb6 {[%clk 0:02:34]}  Rd8 {[%clk 0:02:02]} 20. a4 {[%clk 0:02:31]}  O-O {[%clk 0:01:30]} 21. O-O-O {[%clk 0:02:26]}  Be8 {[%clk 0:01:27]} 22. g3 {[%clk 0:02:23]}  Kg7 {[%clk 0:01:19]} 23. Nd6 {[%clk 0:02:15]}  f6 {[%clk 0:01:01]} 24. Nxf5+ {[%clk 0:02:12]}  exf5 {[%clk 0:01:00]} 25. exf6+ {[%clk 0:02:13]}  Rxf6 {[%clk 0:00:57]} 26. Nd5 {[%clk 0:02:08]}  Rc8+ {[%clk 0:00:30]} 27. Kb1 {[%clk 0:02:08]}  Kf7 {[%clk 0:00:29]} 28. Nxe7 {[%clk 0:02:07]}  Kxe7 {[%clk 0:00:30]} 29. Bxf6+ {[%clk 0:02:07]}  Kf7 {[%clk 0:00:31]} 30. Bxg5 {[%clk 0:02:05]} 1-0


[Site "https://www.chess.com"]

[Event "Titled Tuesday Blitz February 14 Early 2023"]
[White "Urazayev, Arystanbek"]
[Black "Ioannidis, Evgenios"]
[WhiteFideId "13709810"]
[BlackFideId "4229274"]
[WhiteElo "2460"]
[BlackElo "2467"]
[Result "0-1"]
[Round "05"]
[TimeControl "180+2"]
[Date "2023.02.15"]
[WhiteClock "0:01:30"]
[BlackClock "0:00:34"]

1. d4 {[%clk 0:03:00]}  Nf6 {[%clk 0:03:00]} 2. c4 {[%clk 0:03:01]}  e6 {[%clk 0:03:00]} 3. Nc3 {[%clk 0:03:01]}  Bb4 {[%clk 0:03:00]} 4. Qc2 {[%clk 0:03:01]}  d5 {[%clk 0:03:00]} 5. a3 {[%clk 0:03:01]}  Bxc3+ {[%clk 0:03:00]} 6. Qxc3 {[%clk 0:03:02]}  O-O {[%clk 0:03:00]} 7. Nf3 {[%clk 0:03:01]}  b6 {[%clk 0:02:53]} 8. Bg5 {[%clk 0:03:01]}  dxc4 {[%clk 0:02:51]} 9. Qxc4 {[%clk 0:03:01]}  Ba6 {[%clk 0:02:50]} 10. Qa4 {[%clk 0:03:01]}  h6 {[%clk 0:02:51]} 11. Bh4 {[%clk 0:03:01]}  c5 {[%clk 0:02:51]} 12. dxc5 {[%clk 0:02:57]}  bxc5 {[%clk 0:02:51]} 13. g4 {[%clk 0:02:54]}  Qb6 {[%clk 0:02:26]} 14. Bxf6 {[%clk 0:02:30]}  gxf6 {[%clk 0:02:26]} 15. O-O-O {[%clk 0:02:31]}  Nc6 {[%clk 0:02:15]} 16. Qf4 {[%clk 0:02:00]}  Rfb8 {[%clk 0:01:33]} 17. Rd2 {[%clk 0:01:58]}  Na5 {[%clk 0:01:27]} 18. Rc2 {[%clk 0:01:59]}  Nb3+ {[%clk 0:01:17]} 19. Kb1 {[%clk 0:01:58]}  Rd8 {[%clk 0:01:17]} 20. Bg2 {[%clk 0:01:55]}  Kg7 {[%clk 0:01:00]} 21. h4 {[%clk 0:01:52]}  Nd4 {[%clk 0:00:56]} 22. Nxd4 {[%clk 0:01:52]}  Rxd4 {[%clk 0:00:55]} 23. Bxa8 {[%clk 0:01:53]}  Rxf4 {[%clk 0:00:55]} 24. e3 {[%clk 0:01:34]}  Rxg4 {[%clk 0:00:48]} 25. Bf3 {[%clk 0:01:34]}  Rg6 {[%clk 0:00:42]} 26. Bh5 {[%clk 0:01:30]}  Bd3 {[%clk 0:00:41]} 27. Bxg6 {[%clk 0:01:30]}  fxg6 {[%clk 0:00:39]} 28. Rd1 {[%clk 0:01:28]}  Qb3 {[%clk 0:00:39]} 29. Rd2 {[%clk 0:01:28]}  e5 {[%clk 0:00:35]} 30. Kc1 {[%clk 0:01:28]}  Bxc2 {[%clk 0:00:35]} 31. Rxc2 {[%clk 0:01:29]}  c4 {[%clk 0:00:34]} 32. Rc3 {[%clk 0:01:30]}  Qb5 {[%clk 0:00:34]} 0-1


[Site "https://www.chess.com"]

[Event "Titled Tuesday Blitz February 14 Early 2023"]
[White "Nihal Sarin"]
[Black "Ozen, Bahadir"]
[WhiteFideId "25092340"]
[BlackFideId "6337058"]
[WhiteElo "2673"]
[BlackElo "2369"]
[Result "1-0"]
[Round "05"]
[TimeControl "180+2"]
[Date "2023.02.15"]
[WhiteClock "0:00:06"]
[BlackClock "0:00:01"]

1. d4 {[%clk 0:03:00]}  d5 {[%clk 0:02:59]} 2. Nf3 {[%clk 0:02:59]}  Nf6 {[%clk 0:02:58]} 3. Bf4 {[%clk 0:02:58]}  c5 {[%clk 0:02:59]} 4. e3 {[%clk 0:02:59]}  Nc6 {[%clk 0:02:59]} 5. Nbd2 {[%clk 0:02:59]}  Qb6 {[%clk 0:03:00]} 6. dxc5 {[%clk 0:02:57]}  Qxb2 {[%clk 0:03:00]} 7. Rb1 {[%clk 0:02:57]}  Qc3 {[%clk 0:03:01]} 8. Bb5 {[%clk 0:02:57]}  g6 {[%clk 0:03:02]} 9. e4 {[%clk 0:02:57]}  a6 {[%clk 0:02:54]} 10. Bxc6+ {[%clk 0:02:34]}  bxc6 {[%clk 0:02:55]} 11. O-O {[%clk 0:02:34]}  Bg7 {[%clk 0:02:42]} 12. Be5 {[%clk 0:02:30]}  Qxc5 {[%clk 0:02:39]} 13. Nb3 {[%clk 0:01:44]}  Qa3 {[%clk 0:01:50]} 14. exd5 {[%clk 0:01:38]}  O-O {[%clk 0:01:47]} 15. dxc6 {[%clk 0:01:36]}  Bg4 {[%clk 0:01:26]} 16. h3 {[%clk 0:01:30]}  Rfd8 {[%clk 0:01:23]} 17. Qe2 {[%clk 0:01:25]}  Bxf3 {[%clk 0:00:57]} 18. Qxf3 {[%clk 0:01:25]}  Rac8 {[%clk 0:00:57]} 19. c7 {[%clk 0:01:19]}  Re8 {[%clk 0:00:51]} 20. Rfd1 {[%clk 0:01:17]}  Qxa2 {[%clk 0:00:50]} 21. Qc6 {[%clk 0:00:51]}  Qa3 {[%clk 0:00:40]} 22. Nc5 {[%clk 0:00:09]}  Qa5 {[%clk 0:00:27]} 23. Rb8 {[%clk 0:00:09]}  Bf8 {[%clk 0:00:19]} 24. Bxf6 {[%clk 0:00:05]}  Rxb8 {[%clk 0:00:17]} 25. cxb8=Q {[%clk 0:00:06]}  Rxb8 {[%clk 0:00:17]} 26. Be5 {[%clk 0:00:05]}  Rb5 {[%clk 0:00:06]} 27. Nd7 {[%clk 0:00:06]}  Rxe5 {[%clk 0:00:03]} 28. Qc8 {[%clk 0:00:06]}  Re1+ {[%clk 0:00:01]} 29. Kh2 {[%clk 0:00:06]} 1-0


[Site "https://www.chess.com"]

[Event "Titled Tuesday Blitz February 14 Early 2023"]
[White "Darini, Pouria"]
[Black "Andreikin, Dmitry"]
[WhiteFideId "12502200"]
[BlackFideId "4158814"]
[WhiteElo "2401"]
[BlackElo "2729"]
[Result "0-1"]
[Round "05"]
[TimeControl "180+2"]
[Date "2023.02.15"]
[WhiteClock "0:00:01"]
[BlackClock "0:00:25"]

1. d4 {[%clk 0:02:59]}  Nf6 {[%clk 0:02:56]} 2. Bf4 {[%clk 0:02:58]}  c5 {[%clk 0:02:52]} 3. e3 {[%clk 0:02:57]}  g6 {[%clk 0:02:42]} 4. Nf3 {[%clk 0:02:55]}  Bg7 {[%clk 0:02:42]} 5. c3 {[%clk 0:02:54]}  O-O {[%clk 0:02:42]} 6. Be2 {[%clk 0:02:52]}  cxd4 {[%clk 0:02:40]} 7. cxd4 {[%clk 0:02:46]}  d6 {[%clk 0:02:32]} 8. Nc3 {[%clk 0:02:45]}  Nc6 {[%clk 0:02:29]} 9. O-O {[%clk 0:02:45]}  Nh5 {[%clk 0:02:29]} 10. Bg5 {[%clk 0:02:45]}  h6 {[%clk 0:02:29]} 11. Bh4 {[%clk 0:02:45]}  g5 {[%clk 0:02:29]} 12. Nd2 {[%clk 0:02:29]}  Nf4 {[%clk 0:02:29]} 13. exf4 {[%clk 0:02:29]}  gxh4 {[%clk 0:02:29]} 14. Nb3 {[%clk 0:02:28]}  a5 {[%clk 0:02:21]} 15. d5 {[%clk 0:02:24]}  a4 {[%clk 0:01:49]} 16. dxc6 {[%clk 0:02:12]}  axb3 {[%clk 0:01:49]} 17. cxb7 {[%clk 0:02:09]}  Bxb7 {[%clk 0:01:50]} 18. Qxb3 {[%clk 0:02:10]}  Bc6 {[%clk 0:01:47]} 19. Rfe1 {[%clk 0:01:42]}  Qa5 {[%clk 0:01:33]} 20. Qc2 {[%clk 0:01:17]}  Rfc8 {[%clk 0:01:27]} 21. Rac1 {[%clk 0:01:14]}  Qb4 {[%clk 0:01:00]} 22. Qf5 {[%clk 0:00:39]}  e6 {[%clk 0:00:51]} 23. Qh5 {[%clk 0:00:13]}  Qxb2 {[%clk 0:00:50]} 24. Nb5 {[%clk 0:00:08]}  Bxb5 {[%clk 0:00:41]} 25. Rxc8+ {[%clk 0:00:09]}  Rxc8 {[%clk 0:00:40]} 26. Qxb5 {[%clk 0:00:09]}  Qd2 {[%clk 0:00:35]} 27. Rd1 {[%clk 0:00:07]}  Qxf4 {[%clk 0:00:32]} 28. a4 {[%clk 0:00:06]}  Bd4 {[%clk 0:00:28]} 29. Rf1 {[%clk 0:00:06]}  Rc1 {[%clk 0:00:27]} 30. Rxc1 {[%clk 0:00:01]}  Bxf2+ {[%clk 0:00:25]} 0-1


[Site "https://www.chess.com"]

[Event "Titled Tuesday Blitz February 14 Early 2023"]
[White "Alex_Sahakyan2006"]
[Black "Bluebaum, Matthias"]
[BlackFideId "24651516"]
[WhiteElo "2715"]
[BlackElo "2669"]
[Result "1/2-1/2"]
[Round "05"]
[TimeControl "180+2"]
[Date "2023.02.15"]
[WhiteClock "0:00:14"]
[BlackClock "0:00:27"]

1. d4 {[%clk 0:02:59]}  d5 {[%clk 0:02:59]} 2. c4 {[%clk 0:02:57]}  e6 {[%clk 0:02:59]} 3. Nf3 {[%clk 0:02:57]}  Nf6 {[%clk 0:02:59]} 4. Nc3 {[%clk 0:02:58]}  Bb4 {[%clk 0:03:00]} 5. e3 {[%clk 0:02:41]}  O-O {[%clk 0:02:58]} 6. Bd2 {[%clk 0:02:37]}  b6 {[%clk 0:02:56]} 7. cxd5 {[%clk 0:02:34]}  exd5 {[%clk 0:02:57]} 8. Rc1 {[%clk 0:02:32]}  Be7 {[%clk 0:02:56]} 9. Bd3 {[%clk 0:02:28]}  c5 {[%clk 0:02:56]} 10. Ne5 {[%clk 0:02:23]}  Bb7 {[%clk 0:02:55]} 11. O-O {[%clk 0:02:22]}  Nc6 {[%clk 0:02:56]} 12. Nxc6 {[%clk 0:02:04]}  Bxc6 {[%clk 0:02:57]} 13. Qf3 {[%clk 0:01:58]}  Rc8 {[%clk 0:02:55]} 14. Bf5 {[%clk 0:01:49]}  Rc7 {[%clk 0:02:51]} 15. Rfd1 {[%clk 0:01:48]}  c4 {[%clk 0:02:48]} 16. Bb1 {[%clk 0:01:34]}  b5 {[%clk 0:02:47]} 17. Ne2 {[%clk 0:01:28]}  b4 {[%clk 0:02:44]} 18. g4 {[%clk 0:01:21]}  Re8 {[%clk 0:02:42]} 19. Ng3 {[%clk 0:01:20]}  Bf8 {[%clk 0:02:37]} 20. g5 {[%clk 0:01:06]}  Ne4 {[%clk 0:02:37]} 21. h4 {[%clk 0:01:02]}  g6 {[%clk 0:02:29]} 22. Qg4 {[%clk 0:00:57]}  Nxd2 {[%clk 0:02:25]} 23. Rxd2 {[%clk 0:00:57]}  Qd7 {[%clk 0:02:19]} 24. Qf3 {[%clk 0:00:53]}  Bd6 {[%clk 0:02:08]} 25. Kg2 {[%clk 0:00:50]}  Qe7 {[%clk 0:02:03]} 26. Rh1 {[%clk 0:00:40]}  Rf8 {[%clk 0:02:03]} 27. e4 {[%clk 0:00:28]}  dxe4 {[%clk 0:01:49]} 28. Bxe4 {[%clk 0:00:29]}  Bxg3 {[%clk 0:01:02]} 29. Bxc6 {[%clk 0:00:28]}  Qd6 {[%clk 0:01:03]} 30. fxg3 {[%clk 0:00:20]}  Rxc6 {[%clk 0:01:02]} 31. d5 {[%clk 0:00:20]}  Rc5 {[%clk 0:01:02]} 32. h5 {[%clk 0:00:21]}  c3 {[%clk 0:01:01]} 33. bxc3 {[%clk 0:00:20]}  bxc3 {[%clk 0:01:02]} 34. Rd3 {[%clk 0:00:15]}  c2 {[%clk 0:01:02]} 35. Rc1 {[%clk 0:00:13]}  Rd8 {[%clk 0:01:00]} 36. h6 {[%clk 0:00:12]}  Qe5 {[%clk 0:00:57]} 37. Qf6 {[%clk 0:00:11]}  Qxf6 {[%clk 0:00:53]} 38. gxf6 {[%clk 0:00:12]}  Kf8 {[%clk 0:00:47]} 39. Rd2 {[%clk 0:00:12]}  Rd6 {[%clk 0:00:41]} 40. Rdxc2 {[%clk 0:00:10]}  Rxc2+ {[%clk 0:00:42]} 41. Rxc2 {[%clk 0:00:11]}  Rxf6 {[%clk 0:00:42]} 42. Rc8+ {[%clk 0:00:10]}  Ke7 {[%clk 0:00:43]} 43. Rc7+ {[%clk 0:00:11]}  Kd6 {[%clk 0:00:43]} 44. Rxa7 {[%clk 0:00:11]}  Kxd5 {[%clk 0:00:44]} 45. g4 {[%clk 0:00:11]}  g5 {[%clk 0:00:44]} 46. Ra5+ {[%clk 0:00:11]}  Ke4 {[%clk 0:00:45]} 47. Rxg5 {[%clk 0:00:10]}  Rxh6 {[%clk 0:00:46]} 48. Rh5 {[%clk 0:00:08]}  Ra6 {[%clk 0:00:40]} 49. Rxh7 {[%clk 0:00:05]}  Rxa2+ {[%clk 0:00:40]} 50. Kg3 {[%clk 0:00:06]}  Ra3+ {[%clk 0:00:37]} 51. Kh4 {[%clk 0:00:06]}  Rf3 {[%clk 0:00:37]} 52. Rh5 {[%clk 0:00:05]}  Rf1 {[%clk 0:00:29]} 53. Kg5 {[%clk 0:00:03]}  Ke5 {[%clk 0:00:27]} 54. Rh2 {[%clk 0:00:03]}  f6+ {[%clk 0:00:24]} 55. Kg6 {[%clk 0:00:03]}  Kf4 {[%clk 0:00:24]} 56. Rg2 {[%clk 0:00:03]}  Kf3 {[%clk 0:00:24]} 57. Ra2 {[%clk 0:00:01]}  Kxg4 {[%clk 0:00:25]} 58. Ra4+ {[%clk 0:00:02]}  Kg3 {[%clk 0:00:25]} 59. Ra5 {[%clk 0:00:02]}  Kg4 {[%clk 0:00:24]} 60. Ra4+ {[%clk 0:00:03]}  Kg3 {[%clk 0:00:24]} 61. Ra5 {[%clk 0:00:03]}  Kh4 {[%clk 0:00:20]} 62. Rf5 {[%clk 0:00:03]}  Ra1 {[%clk 0:00:20]} 63. Kxf6 {[%clk 0:00:04]}  Ra6+ {[%clk 0:00:21]} 64. Kg7 {[%clk 0:00:04]}  Kg4 {[%clk 0:00:21]} 65. Rf6 {[%clk 0:00:05]}  Ra7+ {[%clk 0:00:22]} 66. Kg6 {[%clk 0:00:05]}  Ra8 {[%clk 0:00:23]} 67. Rf7 {[%clk 0:00:06]}  Rg8+ {[%clk 0:00:23]} 68. Kf6 {[%clk 0:00:06]}  Rb8 {[%clk 0:00:24]} 69. Kg6 {[%clk 0:00:06]}  Rc8 {[%clk 0:00:23]} 70. Rf6 {[%clk 0:00:07]}  Rc7 {[%clk 0:00:23]} 71. Rf7 {[%clk 0:00:08]}  Rc6+ {[%clk 0:00:24]} 72. Rf6 {[%clk 0:00:09]}  Rc5 {[%clk 0:00:25]} 73. Rf7 {[%clk 0:00:10]}  Rg5+ {[%clk 0:00:24]} 74. Kf6 {[%clk 0:00:10]}  Rf5+ {[%clk 0:00:24]} 75. Kg6 {[%clk 0:00:11]}  Rg5+ {[%clk 0:00:24]} 76. Kf6 {[%clk 0:00:11]}  Ra5 {[%clk 0:00:25]} 77. Kg6 {[%clk 0:00:12]}  Ra6+ {[%clk 0:00:25]} 78. Rf6 {[%clk 0:00:13]}  Ra8 {[%clk 0:00:26]} 79. Rf7 {[%clk 0:00:14]}  Rg8+ {[%clk 0:00:26]} 80. Kf6 {[%clk 0:00:14]}  Ra8 {[%clk 0:00:27]} 81. Kg6 {[%clk 0:00:14]} 1/2-1/2


[Site "https://www.chess.com"]

[Event "Titled Tuesday Blitz February 14 Early 2023"]
[White "Terry, Renato"]
[Black "Tan, Zhongyi"]
[WhiteFideId "3803457"]
[BlackFideId "8603642"]
[WhiteElo "2520"]
[BlackElo "2517"]
[Result "0-1"]
[Round "05"]
[TimeControl "180+2"]
[Date "2023.02.15"]
[WhiteClock "0:00:08"]
[BlackClock "0:00:43"]

1. d4 {[%clk 0:02:59]}  Nf6 {[%clk 0:02:56]} 2. Nf3 {[%clk 0:02:59]}  g6 {[%clk 0:02:52]} 3. Bg5 {[%clk 0:02:58]}  Bg7 {[%clk 0:02:52]} 4. c3 {[%clk 0:02:59]}  O-O {[%clk 0:02:51]} 5. Nbd2 {[%clk 0:02:59]}  d6 {[%clk 0:02:48]} 6. e4 {[%clk 0:02:59]}  h6 {[%clk 0:02:48]} 7. Bh4 {[%clk 0:02:59]}  Nc6 {[%clk 0:02:42]} 8. Bb5 {[%clk 0:02:55]}  Bd7 {[%clk 0:02:35]} 9. O-O {[%clk 0:02:54]}  a6 {[%clk 0:02:34]} 10. Ba4 {[%clk 0:02:53]}  b5 {[%clk 0:02:31]} 11. Bb3 {[%clk 0:02:51]}  e5 {[%clk 0:02:31]} 12. dxe5 {[%clk 0:02:39]}  Nxe5 {[%clk 0:02:28]} 13. Nxe5 {[%clk 0:02:33]}  dxe5 {[%clk 0:02:29]} 14. Qe2 {[%clk 0:02:30]}  Qe7 {[%clk 0:02:28]} 15. Bc2 {[%clk 0:02:24]}  c5 {[%clk 0:02:23]} 16. Rfd1 {[%clk 0:02:11]}  Rfd8 {[%clk 0:02:19]} 17. c4 {[%clk 0:02:05]}  Qe6 {[%clk 0:02:10]} 18. f3 {[%clk 0:02:03]}  Bc6 {[%clk 0:01:58]} 19. Bb3 {[%clk 0:01:55]}  b4 {[%clk 0:01:56]} 20. Nf1 {[%clk 0:01:55]}  Rxd1 {[%clk 0:01:54]} 21. Rxd1 {[%clk 0:01:54]}  Nh5 {[%clk 0:01:54]} 22. Ne3 {[%clk 0:01:51]}  Nf4 {[%clk 0:01:53]} 23. Qd2 {[%clk 0:01:52]}  Bf6 {[%clk 0:01:49]} 24. Bf2 {[%clk 0:01:46]}  Rd8 {[%clk 0:01:49]} 25. Nd5 {[%clk 0:01:46]}  Bg5 {[%clk 0:01:41]} 26. Qe1 {[%clk 0:01:20]}  Bxd5 {[%clk 0:01:37]} 27. cxd5 {[%clk 0:01:18]}  Qd6 {[%clk 0:01:36]} 28. Bc4 {[%clk 0:01:16]}  a5 {[%clk 0:01:35]} 29. Be3 {[%clk 0:01:11]}  Rc8 {[%clk 0:01:30]} 30. h4 {[%clk 0:01:09]}  Bf6 {[%clk 0:01:26]} 31. g3 {[%clk 0:01:09]}  g5 {[%clk 0:01:01]} 32. gxf4 {[%clk 0:01:05]}  exf4 {[%clk 0:00:59]} 33. Bc1 {[%clk 0:00:46]}  Bd4+ {[%clk 0:00:58]} 34. Kh2 {[%clk 0:00:46]}  Qe5 {[%clk 0:00:58]} 35. Rd2 {[%clk 0:00:40]}  Kh7 {[%clk 0:00:51]} 36. Rg2 {[%clk 0:00:39]}  Rg8 {[%clk 0:00:50]} 37. d6 {[%clk 0:00:30]}  g4 {[%clk 0:00:49]} 38. Rxg4 {[%clk 0:00:17]}  Rxg4 {[%clk 0:00:47]} 39. fxg4 {[%clk 0:00:17]}  f3+ {[%clk 0:00:48]} 40. Qg3 {[%clk 0:00:17]}  Qxe4 {[%clk 0:00:44]} 41. Qf4 {[%clk 0:00:08]}  Be5 {[%clk 0:00:43]} 0-1


[Site "https://www.chess.com"]

[Event "Titled Tuesday Blitz February 14 Early 2023"]
[White "Papasimakopoulos, Alexandros"]
[Black "Predke, Alexandr"]
[WhiteFideId "4244125"]
[BlackFideId "24107581"]
[WhiteElo "2401"]
[BlackElo "2685"]
[Result "0-1"]
[Round "05"]
[TimeControl "180+2"]
[Date "2023.02.15"]
[WhiteClock "0:00:07"]
[BlackClock "0:00:07"]

1. d4 {[%clk 0:03:00]}  Nf6 {[%clk 0:02:58]} 2. c4 {[%clk 0:02:58]}  d6 {[%clk 0:02:58]} 3. Nf3 {[%clk 0:02:57]}  Bf5 {[%clk 0:02:57]} 4. Nc3 {[%clk 0:02:57]}  Nbd7 {[%clk 0:02:57]} 5. Nh4 {[%clk 0:02:58]}  Bg4 {[%clk 0:02:55]} 6. h3 {[%clk 0:02:55]}  Bh5 {[%clk 0:02:55]} 7. g4 {[%clk 0:02:55]}  Bg6 {[%clk 0:02:56]} 8. Nxg6 {[%clk 0:02:54]}  hxg6 {[%clk 0:02:55]} 9. Bg2 {[%clk 0:02:55]}  c6 {[%clk 0:02:56]} 10. d5 {[%clk 0:02:46]}  cxd5 {[%clk 0:02:52]} 11. cxd5 {[%clk 0:02:46]}  Rc8 {[%clk 0:02:49]} 12. O-O {[%clk 0:02:45]}  a6 {[%clk 0:02:29]} 13. e4 {[%clk 0:02:44]}  Ne5 {[%clk 0:02:26]} 14. Be3 {[%clk 0:02:35]}  Nc4 {[%clk 0:02:23]} 15. Bd4 {[%clk 0:02:34]}  g5 {[%clk 0:02:23]} 16. b3 {[%clk 0:02:27]}  Ne5 {[%clk 0:02:20]} 17. Rc1 {[%clk 0:02:26]}  g6 {[%clk 0:02:14]} 18. Qd2 {[%clk 0:02:14]}  Bh6 {[%clk 0:01:59]} 19. h4 {[%clk 0:01:48]}  gxh4 {[%clk 0:01:32]} 20. g5 {[%clk 0:01:47]}  h3 {[%clk 0:01:32]} 21. f4 {[%clk 0:01:11]}  hxg2 {[%clk 0:01:29]} 22. Qxg2 {[%clk 0:01:07]}  Nd3 {[%clk 0:01:04]} 23. Rcd1 {[%clk 0:01:07]}  Rxc3 {[%clk 0:00:54]} 24. Bxc3 {[%clk 0:00:44]}  Qb6+ {[%clk 0:00:52]} 25. Rf2 {[%clk 0:00:44]}  Qxf2+ {[%clk 0:00:40]} 26. Qxf2 {[%clk 0:00:44]}  Nxf2 {[%clk 0:00:41]} 27. Rc1 {[%clk 0:00:33]}  Nd3 {[%clk 0:00:33]} 28. Rc2 {[%clk 0:00:20]}  O-O {[%clk 0:00:30]} 29. gxf6 {[%clk 0:00:17]}  exf6 {[%clk 0:00:29]} 30. Bxf6 {[%clk 0:00:16]}  Bxf4 {[%clk 0:00:21]} 31. Rc7 {[%clk 0:00:16]}  Nc5 {[%clk 0:00:17]} 32. Bd4 {[%clk 0:00:12]}  Nxe4 {[%clk 0:00:16]} 33. Rxb7 {[%clk 0:00:11]}  Be5 {[%clk 0:00:15]} 34. Be3 {[%clk 0:00:11]}  Rc8 {[%clk 0:00:14]} 35. Ra7 {[%clk 0:00:11]}  Rc3 {[%clk 0:00:11]} 36. Bb6 {[%clk 0:00:11]}  Rc2 {[%clk 0:00:10]} 37. Rxa6 {[%clk 0:00:11]}  Re2 {[%clk 0:00:07]} 38. b4 {[%clk 0:00:10]}  Bh2+ {[%clk 0:00:06]} 39. Kf1 {[%clk 0:00:07]}  Ng3# {[%clk 0:00:07]} 0-1


[Site "https://www.chess.com"]